[Event "Titled Tuesday Blitz February 21 Early 2023"]
[White "Le, Tuan Minh"]
[Black "Bacrot, Etienne"]
[WhiteFideId "12401153"]
[BlackFideId "605506"]
[WhiteElo "2542"]
[BlackElo "2667"]
[Result "1/2-1/2"]
[Round "09"]
[TimeControl "180+2"]
[Date "2023.02.21"]
[WhiteClock "0:00:08"]
[BlackClock "0:00:08"]

1. d4 {[%clk 0:03:00]}  Nf6 {[%clk 0:02:52]} 2. Nf3 {[%clk 0:03:01]}  g6 {[%clk 0:02:52]} 3. Bg5 {[%clk 0:03:01]}  Bg7 {[%clk 0:02:52]} 4. Nbd2 {[%clk 0:03:02]}  O-O {[%clk 0:02:52]} 5. c3 {[%clk 0:03:02]}  d5 {[%clk 0:02:52]} 6. e3 {[%clk 0:03:03]}  Nbd7 {[%clk 0:02:52]} 7. Bd3 {[%clk 0:03:03]}  b6 {[%clk 0:02:53]} 8. O-O {[%clk 0:03:01]}  Bb7 {[%clk 0:02:53]} 9. a4 {[%clk 0:02:59]}  Ne4 {[%clk 0:02:53]} 10. Bh4 {[%clk 0:02:59]}  a6 {[%clk 0:02:43]} 11. Qc2 {[%clk 0:02:51]}  Nxd2 {[%clk 0:02:38]} 12. Nxd2 {[%clk 0:02:52]}  c5 {[%clk 0:02:36]} 13. f4 {[%clk 0:02:52]}  Rc8 {[%clk 0:02:28]} 14. Nf3 {[%clk 0:02:47]}  Re8 {[%clk 0:02:07]} 15. Ne5 {[%clk 0:02:39]}  f6 {[%clk 0:02:05]} 16. Nxg6 {[%clk 0:02:32]}  hxg6 {[%clk 0:02:00]} 17. Bxg6 {[%clk 0:02:32]}  Nf8 {[%clk 0:01:44]} 18. Bxe8 {[%clk 0:01:29]}  Qxe8 {[%clk 0:01:45]} 19. f5 {[%clk 0:01:30]}  Qh5 {[%clk 0:01:39]} 20. Bg3 {[%clk 0:01:30]}  a5 {[%clk 0:01:27]} 21. Rae1 {[%clk 0:01:19]}  Ba6 {[%clk 0:01:24]} 22. Rf4 {[%clk 0:01:20]}  e5 {[%clk 0:01:15]} 23. Rh4 {[%clk 0:00:39]}  Qg5 {[%clk 0:01:12]} 24. Qb3 {[%clk 0:00:40]}  Bc4 {[%clk 0:00:57]} 25. Qxb6 {[%clk 0:00:40]}  Qxf5 {[%clk 0:00:54]} 26. dxe5 {[%clk 0:00:37]}  fxe5 {[%clk 0:00:53]} 27. h3 {[%clk 0:00:31]}  Nd7 {[%clk 0:00:37]} 28. Qb7 {[%clk 0:00:28]}  Nf6 {[%clk 0:00:33]} 29. Bxe5 {[%clk 0:00:22]}  Rf8 {[%clk 0:00:17]} 30. Bxf6 {[%clk 0:00:13]}  Qxf6 {[%clk 0:00:08]} 31. Rf4 {[%clk 0:00:13]}  Qe5 {[%clk 0:00:05]} 32. Rxf8+ {[%clk 0:00:13]}  Bxf8 {[%clk 0:00:06]} 33. Qc8 {[%clk 0:00:11]}  Kg7 {[%clk 0:00:05]} 34. Qg4+ {[%clk 0:00:12]}  Kh7 {[%clk 0:00:05]} 35. Kh1 {[%clk 0:00:08]}  Bd6 {[%clk 0:00:05]} 36. Qf4 {[%clk 0:00:04]}  Qxf4 {[%clk 0:00:05]} 37. exf4 {[%clk 0:00:04]}  Bxf4 {[%clk 0:00:06]} 38. Re7+ {[%clk 0:00:05]}  Kg6 {[%clk 0:00:06]} 39. Ra7 {[%clk 0:00:05]}  d4 {[%clk 0:00:06]} 40. cxd4 {[%clk 0:00:02]}  cxd4 {[%clk 0:00:06]} 41. Rd7 {[%clk 0:00:02]}  d3 {[%clk 0:00:06]} 42. g3 {[%clk 0:00:03]}  Bh6 {[%clk 0:00:05]} 43. Kg2 {[%clk 0:00:02]}  d2 {[%clk 0:00:06]} 44. Kf2 {[%clk 0:00:03]}  Bb3 {[%clk 0:00:04]} 45. Ke2 {[%clk 0:00:04]}  Bxa4 {[%clk 0:00:04]} 46. Rxd2 {[%clk 0:00:04]}  Bxd2 {[%clk 0:00:04]} 47. Kxd2 {[%clk 0:00:05]}  Bb3 {[%clk 0:00:05]} 48. Kc3 {[%clk 0:00:05]}  a4 {[%clk 0:00:05]} 49. Kb4 {[%clk 0:00:06]}  Kf5 {[%clk 0:00:06]} 50. Ka5 {[%clk 0:00:06]}  Ke4 {[%clk 0:00:06]} 51. Kb4 {[%clk 0:00:06]}  Kf3 {[%clk 0:00:06]} 52. g4 {[%clk 0:00:06]}  Kf4 {[%clk 0:00:07]} 53. Ka5 {[%clk 0:00:07]}  Kg5 {[%clk 0:00:07]} 54. Kb4 {[%clk 0:00:08]}  Kf4 {[%clk 0:00:07]} 55. Ka5 {[%clk 0:00:08]}  Ke5 {[%clk 0:00:08]} 56. Kb4 {[%clk 0:00:08]}  Kf4 {[%clk 0:00:08]} 1/2-1/2


[Site "https://www.chess.com"]

[Event "Titled Tuesday Blitz February 21 Early 2023"]
[White "Ahmadzada, Ahmad"]
[Black "Sarana, Alexey"]
[WhiteFideId "13413007"]
[BlackFideId "24133795"]
[WhiteElo "2488"]
[BlackElo "2685"]
[Result "0-1"]
[Round "09"]
[TimeControl "180+2"]
[Date "2023.02.21"]
[WhiteClock "0:00:01"]
[BlackClock "0:00:53"]

1. Nf3 {[%clk 0:03:00]}  d5 {[%clk 0:03:00]} 2. d4 {[%clk 0:02:59]}  Nf6 {[%clk 0:03:00]} 3. Bf4 {[%clk 0:02:58]}  c5 {[%clk 0:03:00]} 4. e3 {[%clk 0:02:58]}  Nc6 {[%clk 0:03:01]} 5. Nbd2 {[%clk 0:02:58]}  Qb6 {[%clk 0:03:01]} 6. dxc5 {[%clk 0:02:54]}  Qxb2 {[%clk 0:03:01]} 7. Rb1 {[%clk 0:02:51]}  Qa3 {[%clk 0:03:01]} 8. Bb5 {[%clk 0:02:38]}  g6 {[%clk 0:03:01]} 9. c4 {[%clk 0:01:54]}  Bg7 {[%clk 0:03:00]} 10. Ne5 {[%clk 0:01:42]}  Qxc5 {[%clk 0:02:59]} 11. cxd5 {[%clk 0:01:20]}  Qxd5 {[%clk 0:02:58]} 12. e4 {[%clk 0:00:51]}  Qc5 {[%clk 0:02:21]} 13. Qc1 {[%clk 0:00:35]}  Qxc1+ {[%clk 0:02:04]} 14. Rxc1 {[%clk 0:00:35]}  a6 {[%clk 0:02:04]} 15. Bxc6+ {[%clk 0:00:31]}  bxc6 {[%clk 0:02:03]} 16. Nxc6 {[%clk 0:00:31]}  Be6 {[%clk 0:01:46]} 17. Nc4 {[%clk 0:00:16]}  a5 {[%clk 0:01:19]} 18. f3 {[%clk 0:00:14]}  Nd7 {[%clk 0:01:16]} 19. Ke2 {[%clk 0:00:13]}  a4 {[%clk 0:01:09]} 20. a3 {[%clk 0:00:12]}  Rc8 {[%clk 0:00:59]} 21. N4a5 {[%clk 0:00:03]}  Bb2 {[%clk 0:00:54]} 22. Rc2 {[%clk 0:00:04]}  Bxa3 {[%clk 0:00:53]} 23. Ra1 {[%clk 0:00:05]}  Bb3 {[%clk 0:00:53]} 24. Nxb3 {[%clk 0:00:01]}  axb3 {[%clk 0:00:54]} 25. Rc5 {[%clk 0:00:01]}  Bxc5 {[%clk 0:00:53]} 0-1


[Site "https://www.chess.com"]

[Event "Titled Tuesday Blitz February 21 Early 2023"]
[White "Nihal Sarin"]
[Black "Bernadskiy, Vitaliy"]
[WhiteFideId "25092340"]
[BlackFideId "14100371"]
[WhiteElo "2673"]
[BlackElo "2592"]
[Result "0-1"]
[Round "09"]
[TimeControl "180+2"]
[Date "2023.02.21"]
[WhiteClock "0:00:06"]
[BlackClock "0:00:31"]

1. Nf3 {[%clk 0:02:57]}  c5 {[%clk 0:02:58]} 2. b3 {[%clk 0:02:57]}  d6 {[%clk 0:02:55]} 3. d4 {[%clk 0:02:57]}  cxd4 {[%clk 0:02:54]} 4. Nxd4 {[%clk 0:02:58]}  Nf6 {[%clk 0:02:48]} 5. Bb2 {[%clk 0:02:57]}  e5 {[%clk 0:02:46]} 6. Nf3 {[%clk 0:02:57]}  Be7 {[%clk 0:02:43]} 7. e3 {[%clk 0:02:57]}  O-O {[%clk 0:02:43]} 8. c4 {[%clk 0:02:58]}  b6 {[%clk 0:02:36]} 9. Nc3 {[%clk 0:02:53]}  Bb7 {[%clk 0:02:36]} 10. Be2 {[%clk 0:02:54]}  Nbd7 {[%clk 0:02:35]} 11. O-O {[%clk 0:02:54]}  a6 {[%clk 0:02:31]} 12. Qd2 {[%clk 0:02:54]}  Nc5 {[%clk 0:02:30]} 13. Rfd1 {[%clk 0:02:54]}  Re8 {[%clk 0:02:28]} 14. b4 {[%clk 0:02:40]}  Nce4 {[%clk 0:02:28]} 15. Nxe4 {[%clk 0:02:40]}  Nxe4 {[%clk 0:02:28]} 16. Qc2 {[%clk 0:02:41]}  Rc8 {[%clk 0:02:27]} 17. Bxe5 {[%clk 0:02:33]}  b5 {[%clk 0:02:13]} 18. c5 {[%clk 0:02:22]}  Bh4 {[%clk 0:02:00]} 19. g3 {[%clk 0:01:39]}  Bf6 {[%clk 0:01:59]} 20. Bb2 {[%clk 0:01:14]}  Qe7 {[%clk 0:01:47]} 21. Bxf6 {[%clk 0:00:23]}  Qxf6 {[%clk 0:01:48]} 22. c6 {[%clk 0:00:23]}  Rxc6 {[%clk 0:01:29]} 23. Qd3 {[%clk 0:00:21]}  Nc3 {[%clk 0:01:24]} 24. Re1 {[%clk 0:00:07]}  Nxe2+ {[%clk 0:01:15]} 25. Qxe2 {[%clk 0:00:08]}  Rc2 {[%clk 0:01:06]} 26. Qxc2 {[%clk 0:00:08]}  Qxf3 {[%clk 0:01:06]} 27. e4 {[%clk 0:00:09]}  Bxe4 {[%clk 0:01:04]} 28. Rxe4 {[%clk 0:00:10]}  Qxe4 {[%clk 0:01:04]} 29. Qxe4 {[%clk 0:00:06]}  Rxe4 {[%clk 0:01:05]} 30. a4 {[%clk 0:00:07]}  Kf8 {[%clk 0:00:57]} 31. axb5 {[%clk 0:00:03]}  axb5 {[%clk 0:00:58]} 32. Rb1 {[%clk 0:00:03]}  Ke7 {[%clk 0:00:57]} 33. Kg2 {[%clk 0:00:04]}  d5 {[%clk 0:00:56]} 34. f3 {[%clk 0:00:04]}  Re2+ {[%clk 0:00:55]} 35. Kg1 {[%clk 0:00:04]}  Kd6 {[%clk 0:00:54]} 36. Ra1 {[%clk 0:00:04]}  d4 {[%clk 0:00:48]} 37. Ra7 {[%clk 0:00:05]}  d3 {[%clk 0:00:46]} 38. Kf1 {[%clk 0:00:05]}  Re5 {[%clk 0:00:35]} 39. Ra8 {[%clk 0:00:05]}  Kd5 {[%clk 0:00:32]} 40. Rc8 {[%clk 0:00:05]}  Kd4 {[%clk 0:00:32]} 41. Kf2 {[%clk 0:00:05]}  d2 {[%clk 0:00:31]} 42. Rd8+ {[%clk 0:00:06]}  Rd5 {[%clk 0:00:31]} 0-1


[Site "https://www.chess.com"]

[Event "Titled Tuesday Blitz February 21 Early 2023"]
[White "Molina, Roberto Junio Brito"]
[Black "Dubov, Daniil"]
[WhiteFideId "2109450"]
[BlackFideId "24126055"]
[WhiteElo "2403"]
[BlackElo "2708"]
[Result "0-1"]
[Round "09"]
[TimeControl "180+2"]
[Date "2023.02.21"]
[WhiteClock "0:00:06"]
[BlackClock "0:00:06"]

1. d4 {[%clk 0:03:00]}  Nf6 {[%clk 0:02:59]} 2. c4 {[%clk 0:03:01]}  e6 {[%clk 0:02:59]} 3. Nf3 {[%clk 0:03:01]}  c5 {[%clk 0:02:59]} 4. d5 {[%clk 0:03:01]}  d6 {[%clk 0:03:00]} 5. Nc3 {[%clk 0:03:00]}  exd5 {[%clk 0:03:01]} 6. cxd5 {[%clk 0:03:00]}  g6 {[%clk 0:03:01]} 7. h3 {[%clk 0:03:00]}  Bg7 {[%clk 0:03:01]} 8. e4 {[%clk 0:03:00]}  O-O {[%clk 0:03:01]} 9. Bd3 {[%clk 0:03:01]}  Na6 {[%clk 0:02:59]} 10. O-O {[%clk 0:03:00]}  Nc7 {[%clk 0:02:59]} 11. Re1 {[%clk 0:03:00]}  a6 {[%clk 0:02:51]} 12. a4 {[%clk 0:02:58]}  Rb8 {[%clk 0:02:52]} 13. a5 {[%clk 0:02:55]}  b5 {[%clk 0:02:51]} 14. axb6 {[%clk 0:02:56]}  Rxb6 {[%clk 0:02:49]} 15. Nd2 {[%clk 0:02:52]}  Nb5 {[%clk 0:02:44]} 16. Nc4 {[%clk 0:02:50]}  Rb8 {[%clk 0:02:43]} 17. Bf4 {[%clk 0:02:38]}  Ne8 {[%clk 0:02:42]} 18. Qd2 {[%clk 0:02:35]}  Nd4 {[%clk 0:02:41]} 19. Ra3 {[%clk 0:02:32]}  Rb4 {[%clk 0:02:36]} 20. Bg5 {[%clk 0:02:13]}  Qc7 {[%clk 0:02:33]} 21. Kh1 {[%clk 0:02:02]}  Nb5 {[%clk 0:02:13]} 22. Raa1 {[%clk 0:01:56]}  f5 {[%clk 0:02:00]} 23. exf5 {[%clk 0:01:54]}  Bxf5 {[%clk 0:01:48]} 24. Re7 {[%clk 0:01:52]}  Qc8 {[%clk 0:01:46]} 25. Rae1 {[%clk 0:01:28]}  Nd4 {[%clk 0:01:27]} 26. R1e3 {[%clk 0:01:06]}  h6 {[%clk 0:01:15]} 27. Rxe8 {[%clk 0:00:52]}  Rxe8 {[%clk 0:01:15]} 28. Nxd6 {[%clk 0:00:51]}  Rxe3 {[%clk 0:01:16]} 29. Bxf5 {[%clk 0:00:45]}  Qf8 {[%clk 0:01:03]} 30. Bxe3 {[%clk 0:00:30]}  gxf5 {[%clk 0:00:36]} 31. Bf4 {[%clk 0:00:25]}  Kh7 {[%clk 0:00:35]} 32. g3 {[%clk 0:00:16]}  Qe7 {[%clk 0:00:27]} 33. Qd3 {[%clk 0:00:13]}  Rxb2 {[%clk 0:00:23]} 34. Kg2 {[%clk 0:00:12]}  Rb3 {[%clk 0:00:09]} 35. Bd2 {[%clk 0:00:08]}  Qxd6 {[%clk 0:00:08]} 36. Qc4 {[%clk 0:00:07]}  Rb4 {[%clk 0:00:08]} 37. Qd3 {[%clk 0:00:06]}  Nb5 {[%clk 0:00:08]} 38. Bf4 {[%clk 0:00:06]}  Rxf4 {[%clk 0:00:06]} 39. gxf4 {[%clk 0:00:06]}  Nxc3 {[%clk 0:00:06]} 0-1


[Site "https://www.chess.com"]

[Event "Titled Tuesday Blitz February 21 Early 2023"]
[White "Kamsky, Gata"]
[Black "Kramnik, Vladimir"]
[WhiteFideId "2000024"]
[BlackFideId "4101588"]
[WhiteElo "2665"]
[BlackElo "2753"]
[Result "1/2-1/2"]
[Round "09"]
[TimeControl "180+2"]
[Date "2023.02.21"]
[WhiteClock "0:00:45"]
[BlackClock "0:00:46"]

1. d4 {[%clk 0:02:54]}  Nf6 {[%clk 0:02:58]} 2. Bf4 {[%clk 0:02:50]}  c5 {[%clk 0:02:56]} 3. e3 {[%clk 0:02:49]}  cxd4 {[%clk 0:02:55]} 4. exd4 {[%clk 0:02:49]}  g6 {[%clk 0:02:55]} 5. c3 {[%clk 0:02:48]}  Bg7 {[%clk 0:02:54]} 6. Nf3 {[%clk 0:02:48]}  O-O {[%clk 0:02:54]} 7. Nbd2 {[%clk 0:02:46]}  d6 {[%clk 0:02:53]} 8. h3 {[%clk 0:02:45]}  Nc6 {[%clk 0:02:52]} 9. Be2 {[%clk 0:02:45]}  Nh5 {[%clk 0:02:47]} 10. Bh2 {[%clk 0:02:44]}  e5 {[%clk 0:02:47]} 11. O-O {[%clk 0:02:43]}  exd4 {[%clk 0:02:41]} 12. Nxd4 {[%clk 0:02:42]}  Nxd4 {[%clk 0:02:40]} 13. cxd4 {[%clk 0:02:39]}  Nf6 {[%clk 0:02:39]} 14. Nc4 {[%clk 0:02:38]}  Ne4 {[%clk 0:02:35]} 15. f3 {[%clk 0:02:14]}  d5 {[%clk 0:02:31]} 16. fxe4 {[%clk 0:02:14]}  dxc4 {[%clk 0:02:31]} 17. Bxc4 {[%clk 0:02:12]}  Qxd4+ {[%clk 0:02:26]} 18. Qxd4 {[%clk 0:02:11]}  Bxd4+ {[%clk 0:02:27]} 19. Kh1 {[%clk 0:02:11]}  Be6 {[%clk 0:02:22]} 20. Bd5 {[%clk 0:01:43]}  Rad8 {[%clk 0:02:17]} 21. Rfd1 {[%clk 0:01:17]}  Bxd5 {[%clk 0:02:02]} 22. Rxd4 {[%clk 0:01:17]}  Bc6 {[%clk 0:02:01]} 23. Rad1 {[%clk 0:01:07]}  Rxd4 {[%clk 0:02:00]} 24. Rxd4 {[%clk 0:01:07]}  Re8 {[%clk 0:02:00]} 25. Bc7 {[%clk 0:01:03]}  Kg7 {[%clk 0:01:44]} 26. e5 {[%clk 0:01:02]}  Rc8 {[%clk 0:01:36]} 27. Bd8 {[%clk 0:01:01]}  f5 {[%clk 0:01:19]} 28. exf6+ {[%clk 0:01:00]}  Kf7 {[%clk 0:01:19]} 29. Be7 {[%clk 0:00:59]}  Be8 {[%clk 0:01:16]} 30. Rd2 {[%clk 0:00:57]}  Rc1+ {[%clk 0:01:14]} 31. Kh2 {[%clk 0:00:57]}  Bc6 {[%clk 0:01:13]} 32. h4 {[%clk 0:00:54]}  h6 {[%clk 0:01:10]} 33. b3 {[%clk 0:00:53]}  g5 {[%clk 0:01:09]} 34. hxg5 {[%clk 0:00:52]}  hxg5 {[%clk 0:01:09]} 35. Kg3 {[%clk 0:00:48]}  Re1 {[%clk 0:01:08]} 36. Kf2 {[%clk 0:00:47]}  Ra1 {[%clk 0:01:00]} 37. Kg3 {[%clk 0:00:45]}  Re1 {[%clk 0:00:52]} 38. Kf2 {[%clk 0:00:45]}  Ra1 {[%clk 0:00:48]} 39. Kg3 {[%clk 0:00:45]}  Re1 {[%clk 0:00:46]} 1/2-1/2


[Site "https://www.chess.com"]

[Event "Titled Tuesday Blitz February 21 Early 2023"]
[White "Rakhmanov, Aleksandr"]
[Black "Shimanov, Aleksandr"]
[WhiteFideId "4173708"]
[BlackFideId "4198603"]
[WhiteElo "2632"]
[BlackElo "2581"]
[Result "1-0"]
[Round "09"]
[TimeControl "180+2"]
[Date "2023.02.21"]
[WhiteClock "0:00:17"]
[BlackClock "0:00:10"]

1. c4 {[%clk 0:02:55]}  e5 {[%clk 0:02:55]} 2. Nf3 {[%clk 0:02:55]}  Nc6 {[%clk 0:02:52]} 3. d4 {[%clk 0:02:55]}  exd4 {[%clk 0:02:52]} 4. Nxd4 {[%clk 0:02:56]}  g6 {[%clk 0:02:39]} 5. Nxc6 {[%clk 0:02:54]}  bxc6 {[%clk 0:02:40]} 6. g3 {[%clk 0:02:54]}  Bg7 {[%clk 0:02:40]} 7. Bg2 {[%clk 0:02:55]}  Ne7 {[%clk 0:02:40]} 8. O-O {[%clk 0:02:55]}  O-O {[%clk 0:02:40]} 9. Nc3 {[%clk 0:02:55]}  Rb8 {[%clk 0:02:40]} 10. Qa4 {[%clk 0:02:55]}  a6 {[%clk 0:02:37]} 11. c5 {[%clk 0:02:46]}  d5 {[%clk 0:02:26]} 12. cxd6 {[%clk 0:02:45]}  cxd6 {[%clk 0:02:26]} 13. Rd1 {[%clk 0:02:41]}  d5 {[%clk 0:02:24]} 14. Qa3 {[%clk 0:02:33]}  Re8 {[%clk 0:02:19]} 15. Bf4 {[%clk 0:02:30]}  Ra8 {[%clk 0:02:15]} 16. Rac1 {[%clk 0:02:27]}  a5 {[%clk 0:02:07]} 17. h3 {[%clk 0:02:15]}  Qb6 {[%clk 0:01:59]} 18. e4 {[%clk 0:02:03]}  Be6 {[%clk 0:01:51]} 19. Bd6 {[%clk 0:01:53]}  Rad8 {[%clk 0:01:40]} 20. Bxe7 {[%clk 0:01:47]}  Rb8 {[%clk 0:00:22]} 21. Bc5 {[%clk 0:01:28]}  Qxb2 {[%clk 0:00:22]} 22. Qxb2 {[%clk 0:01:26]}  Rxb2 {[%clk 0:00:23]} 23. exd5 {[%clk 0:01:27]}  cxd5 {[%clk 0:00:23]} 24. Nxd5 {[%clk 0:01:26]}  Rxa2 {[%clk 0:00:15]} 25. Nc7 {[%clk 0:01:26]}  Rc8 {[%clk 0:00:15]} 26. Nxe6 {[%clk 0:01:20]}  fxe6 {[%clk 0:00:16]} 27. Bd6 {[%clk 0:00:42]}  Rxc1 {[%clk 0:00:15]} 28. Rxc1 {[%clk 0:00:42]}  a4 {[%clk 0:00:14]} 29. Rc8+ {[%clk 0:00:31]}  Kf7 {[%clk 0:00:14]} 30. Rc7+ {[%clk 0:00:31]}  Kg8 {[%clk 0:00:15]} 31. Bf1 {[%clk 0:00:24]}  Bd4 {[%clk 0:00:14]} 32. Bc4 {[%clk 0:00:24]}  Rxf2 {[%clk 0:00:13]} 33. Bxe6+ {[%clk 0:00:22]}  Kh8 {[%clk 0:00:13]} 34. Be5+ {[%clk 0:00:18]}  Bxe5 {[%clk 0:00:10]} 35. Rc8+ {[%clk 0:00:17]} 1-0


[Site "https://www.chess.com"]

[Event "Titled Tuesday Blitz February 21 Early 2023"]
[White "Vakhlamov, Igor L."]
[Black "Korobov, Anton"]
[WhiteFideId "24126748"]
[BlackFideId "14105730"]
[WhiteElo "2413"]
[BlackElo "2664"]
[Result "1/2-1/2"]
[Round "09"]
[TimeControl "180+2"]
[Date "2023.02.21"]
[WhiteClock "0:01:12"]
[BlackClock "0:01:54"]

1. e4 {[%clk 0:02:59]}  c5 {[%clk 0:02:59]} 2. Nf3 {[%clk 0:02:59]}  d6 {[%clk 0:03:00]} 3. Nc3 {[%clk 0:03:00]}  Nf6 {[%clk 0:03:00]} 4. d4 {[%clk 0:03:00]}  cxd4 {[%clk 0:03:00]} 5. Qxd4 {[%clk 0:03:01]}  Nc6 {[%clk 0:02:59]} 6. Bb5 {[%clk 0:03:01]}  Bd7 {[%clk 0:03:00]} 7. Bxc6 {[%clk 0:03:02]}  Bxc6 {[%clk 0:03:01]} 8. Bg5 {[%clk 0:03:02]}  e6 {[%clk 0:03:01]} 9. O-O-O {[%clk 0:03:03]}  Be7 {[%clk 0:03:02]} 10. Rhe1 {[%clk 0:03:03]}  O-O {[%clk 0:03:02]} 11. e5 {[%clk 0:03:04]}  dxe5 {[%clk 0:03:02]} 12. Nxe5 {[%clk 0:03:05]}  Qxd4 {[%clk 0:02:56]} 13. Rxd4 {[%clk 0:03:06]}  Rfc8 {[%clk 0:02:55]} 14. Nxc6 {[%clk 0:03:05]}  Rxc6 {[%clk 0:02:56]} 15. Ne4 {[%clk 0:03:06]}  Rac8 {[%clk 0:02:53]} 16. Re2 {[%clk 0:03:06]}  Kf8 {[%clk 0:02:48]} 17. Nxf6 {[%clk 0:03:05]}  gxf6 {[%clk 0:02:48]} 18. Bh6+ {[%clk 0:03:06]}  Ke8 {[%clk 0:02:48]} 19. Rg4 {[%clk 0:03:00]}  e5 {[%clk 0:02:48]} 20. Rg7 {[%clk 0:02:12]}  f5 {[%clk 0:02:40]} 21. Rxe5 {[%clk 0:02:12]}  Rxh6 {[%clk 0:02:40]} 22. Rg8+ {[%clk 0:02:12]}  Kd7 {[%clk 0:02:40]} 23. Rxe7+ {[%clk 0:02:10]}  Kxe7 {[%clk 0:02:41]} 24. Rxc8 {[%clk 0:02:11]}  Rxh2 {[%clk 0:02:41]} 25. Rc7+ {[%clk 0:02:09]}  Kf6 {[%clk 0:02:42]} 26. Rxb7 {[%clk 0:02:10]}  Rxg2 {[%clk 0:02:42]} 27. Rxa7 {[%clk 0:02:09]}  h5 {[%clk 0:02:42]} 28. b4 {[%clk 0:02:03]}  h4 {[%clk 0:02:40]} 29. Ra8 {[%clk 0:01:55]}  Rxf2 {[%clk 0:02:28]} 30. Rh8 {[%clk 0:01:53]}  Rf4 {[%clk 0:02:25]} 31. c3 {[%clk 0:01:47]}  Kg7 {[%clk 0:02:24]} 32. Rh5 {[%clk 0:01:46]}  Kg6 {[%clk 0:02:24]} 33. Rh8 {[%clk 0:01:46]}  Kg7 {[%clk 0:01:58]} 34. Rh5 {[%clk 0:01:12]}  Kg6 {[%clk 0:01:54]} 35. Rh8 {[%clk 0:01:12]}  Kg7 {[%clk 0:01:54]} 1/2-1/2


[Site "https://www.chess.com"]

[Event "Titled Tuesday Blitz February 21 Early 2023"]
[White "Boros, Denes"]
[Black "Makarian, Rudik"]
[WhiteFideId "722340"]
[BlackFideId "44105681"]
[WhiteElo "2406"]
[BlackElo "2545"]
[Result "0-1"]
[Round "09"]
[TimeControl "180+2"]
[Date "2023.02.21"]
[WhiteClock "0:00:37"]
[BlackClock "0:00:08"]

1. e4 {[%clk 0:03:00]}  c5 {[%clk 0:02:57]} 2. f4 {[%clk 0:03:01]}  d5 {[%clk 0:02:55]} 3. e5 {[%clk 0:03:00]}  h5 {[%clk 0:02:42]} 4. c3 {[%clk 0:02:52]}  d4 {[%clk 0:02:38]} 5. Bc4 {[%clk 0:02:51]}  Nc6 {[%clk 0:02:33]} 6. Nf3 {[%clk 0:02:47]}  Bg4 {[%clk 0:02:33]} 7. h3 {[%clk 0:02:34]}  Bxf3 {[%clk 0:02:33]} 8. Qxf3 {[%clk 0:02:35]}  e6 {[%clk 0:02:31]} 9. f5 {[%clk 0:02:35]}  exf5 {[%clk 0:02:24]} 10. O-O {[%clk 0:02:25]}  Nh6 {[%clk 0:02:12]} 11. d3 {[%clk 0:02:21]}  g6 {[%clk 0:02:02]} 12. e6 {[%clk 0:02:17]}  fxe6 {[%clk 0:01:42]} 13. Bxe6 {[%clk 0:02:06]}  Qf6 {[%clk 0:01:24]} 14. Re1 {[%clk 0:02:04]}  Be7 {[%clk 0:01:15]} 15. Na3 {[%clk 0:01:54]}  a6 {[%clk 0:00:45]} 16. Nc4 {[%clk 0:01:48]}  g5 {[%clk 0:00:40]} 17. Qxh5+ {[%clk 0:01:39]}  Kf8 {[%clk 0:00:37]} 18. Nb6 {[%clk 0:01:35]}  Kg7 {[%clk 0:00:32]} 19. Nd5 {[%clk 0:01:19]}  Qg6 {[%clk 0:00:28]} 20. Qxg6+ {[%clk 0:01:18]}  Kxg6 {[%clk 0:00:29]} 21. Bd7 {[%clk 0:01:19]}  Bf6 {[%clk 0:00:20]} 22. Re6 {[%clk 0:01:17]}  Rhf8 {[%clk 0:00:19]} 23. Bd2 {[%clk 0:01:14]}  Rad8 {[%clk 0:00:17]} 24. Bxc6 {[%clk 0:01:06]}  bxc6 {[%clk 0:00:18]} 25. Nxf6 {[%clk 0:01:02]}  Rxf6 {[%clk 0:00:19]} 26. Rxf6+ {[%clk 0:01:03]}  Kxf6 {[%clk 0:00:20]} 27. h4 {[%clk 0:01:03]}  Nf7 {[%clk 0:00:18]} 28. cxd4 {[%clk 0:01:02]}  gxh4 {[%clk 0:00:16]} 29. Rc1 {[%clk 0:01:00]}  Ke7 {[%clk 0:00:09]} 30. Rxc5 {[%clk 0:00:56]}  Rxd4 {[%clk 0:00:10]} 31. Rxc6 {[%clk 0:00:46]}  Rxd3 {[%clk 0:00:11]} 32. Bf4 {[%clk 0:00:44]}  Rd4 {[%clk 0:00:09]} 33. Be3 {[%clk 0:00:40]}  Re4 {[%clk 0:00:09]} 34. Kf2 {[%clk 0:00:40]}  Ne5 {[%clk 0:00:08]} 35. Bg5+ {[%clk 0:00:39]}  Kd7 {[%clk 0:00:07]} 36. Rc1 {[%clk 0:00:33]}  Nd3+ {[%clk 0:00:07]} 37. Kf3 {[%clk 0:00:33]}  Nxc1 {[%clk 0:00:08]} 38. Bxc1 {[%clk 0:00:33]}  Ke6 {[%clk 0:00:08]} 39. Bd2 {[%clk 0:00:33]}  Kf6 {[%clk 0:00:07]} 40. Bc3+ {[%clk 0:00:33]}  Kg5 {[%clk 0:00:06]} 41. a4 {[%clk 0:00:33]}  Rxa4 {[%clk 0:00:06]} 42. Bd2+ {[%clk 0:00:34]}  Kh5 {[%clk 0:00:06]} 43. Be3 {[%clk 0:00:34]}  Rb4 {[%clk 0:00:06]} 44. Bf4 {[%clk 0:00:35]}  Rb3+ {[%clk 0:00:06]} 45. Be3 {[%clk 0:00:36]}  Rxb2 {[%clk 0:00:07]} 46. Bf4 {[%clk 0:00:37]}  Rb3+ {[%clk 0:00:08]} 47. Be3 {[%clk 0:00:38]}  a5 {[%clk 0:00:08]} 48. g4+ {[%clk 0:00:37]}  fxg4+ {[%clk 0:00:08]} 0-1


[Site "https://www.chess.com"]